[Event "Titled Tuesday Blitz September 27 Early 2022"]
[White "Amgalantengis, Enkh-Amgalan"]
[Black "Antonova, Nadezhda"]
[WhiteFideId "4903536"]
[BlackFideId "14700182"]
[WhiteElo "1719"]
[BlackElo "1805"]
[Result "1-0"]
[Round "06"]
[TimeControl "180+1"]
[Date "2022.09.27"]
[WhiteClock "0:01:18"]
[BlackClock "0:00:03"]

1. c4 {[%clk 0:03:00]}  Nf6 {[%clk 0:02:59]} 2. Nf3 {[%clk 0:03:00]}  g6 {[%clk 0:03:00]} 3. g3 {[%clk 0:03:00]}  Bg7 {[%clk 0:03:00]} 4. Bg2 {[%clk 0:03:01]}  O-O {[%clk 0:03:00]} 5. O-O {[%clk 0:03:02]}  d6 {[%clk 0:02:59]} 6. Nc3 {[%clk 0:03:02]}  Nc6 {[%clk 0:02:59]} 7. d3 {[%clk 0:03:02]}  e5 {[%clk 0:02:55]} 8. Bg5 {[%clk 0:03:03]}  h6 {[%clk 0:02:54]} 9. Bxf6 {[%clk 0:03:03]}  Bxf6 {[%clk 0:02:54]} 10. Nd5 {[%clk 0:03:04]}  Bg7 {[%clk 0:02:55]} 11. Rb1 {[%clk 0:03:05]}  a5 {[%clk 0:02:54]} 12. a3 {[%clk 0:03:04]}  a4 {[%clk 0:02:54]} 13. b4 {[%clk 0:03:03]}  axb3 {[%clk 0:02:54]} 14. Qxb3 {[%clk 0:03:03]}  Nd4 {[%clk 0:02:50]} 15. Nxd4 {[%clk 0:03:03]}  exd4 {[%clk 0:02:50]} 16. e4 {[%clk 0:03:03]}  dxe3 {[%clk 0:02:49]} 17. Nxe3 {[%clk 0:03:02]}  c6 {[%clk 0:02:48]} 18. a4 {[%clk 0:03:02]}  Re8 {[%clk 0:02:44]} 19. h4 {[%clk 0:02:48]}  h5 {[%clk 0:02:41]} 20. Rfe1 {[%clk 0:02:45]}  Re7 {[%clk 0:02:41]} 21. Nc2 {[%clk 0:02:42]}  Bf5 {[%clk 0:02:33]} 22. Ne3 {[%clk 0:02:38]}  Be6 {[%clk 0:02:30]} 23. Red1 {[%clk 0:02:36]}  Bd4 {[%clk 0:02:30]} 24. Nc2 {[%clk 0:02:33]}  Bg7 {[%clk 0:02:29]} 25. d4 {[%clk 0:02:32]}  Bf5 {[%clk 0:02:28]} 26. Rbc1 {[%clk 0:02:28]}  Bh6 {[%clk 0:02:15]} 27. Ra1 {[%clk 0:02:27]}  Re2 {[%clk 0:01:57]} 28. Ne1 {[%clk 0:02:22]}  Qd7 {[%clk 0:01:47]} 29. Bf3 {[%clk 0:02:22]}  Re7 {[%clk 0:01:44]} 30. a5 {[%clk 0:02:21]}  Rae8 {[%clk 0:01:43]} 31. Nd3 {[%clk 0:02:15]}  Be4 {[%clk 0:01:26]} 32. Ne1 {[%clk 0:02:07]}  Bf5 {[%clk 0:01:18]} 33. Ng2 {[%clk 0:02:03]}  Bg4 {[%clk 0:01:12]} 34. a6 {[%clk 0:02:03]}  bxa6 {[%clk 0:01:07]} 35. Rxa6 {[%clk 0:02:03]}  Bf5 {[%clk 0:01:00]} 36. Bxc6 {[%clk 0:02:01]}  Qe6 {[%clk 0:00:59]} 37. Bxe8 {[%clk 0:01:56]}  Rxe8 {[%clk 0:01:00]} 38. Re1 {[%clk 0:01:53]}  Qxe1+ {[%clk 0:00:51]} 39. Nxe1 {[%clk 0:01:54]}  Rxe1+ {[%clk 0:00:52]} 40. Kg2 {[%clk 0:01:55]}  Be4+ {[%clk 0:00:47]} 41. f3 {[%clk 0:01:55]}  Bf5 {[%clk 0:00:38]} 42. Rxd6 {[%clk 0:01:49]}  Re2+ {[%clk 0:00:31]} 43. Kf1 {[%clk 0:01:49]}  Re3 {[%clk 0:00:30]} 44. Qb7 {[%clk 0:01:41]}  Bd3+ {[%clk 0:00:26]} 45. Kg1 {[%clk 0:01:37]}  Re1+ {[%clk 0:00:21]} 46. Kh2 {[%clk 0:01:35]}  Re2+ {[%clk 0:00:19]} 47. Kg1 {[%clk 0:01:35]}  Be3+ {[%clk 0:00:19]} 48. Kh1 {[%clk 0:01:35]}  Re1+ {[%clk 0:00:18]} 49. Kh2 {[%clk 0:01:31]}  Bg1+ {[%clk 0:00:18]} 50. Kg2 {[%clk 0:01:29]}  Be3 {[%clk 0:00:14]} 51. Qb2 {[%clk 0:01:21]}  Re2+ {[%clk 0:00:13]} 52. Qxe2 {[%clk 0:01:21]}  Bxe2 {[%clk 0:00:12]} 53. c5 {[%clk 0:01:22]}  Kf8 {[%clk 0:00:08]} 54. c6 {[%clk 0:01:22]}  Ke7 {[%clk 0:00:08]} 55. Rd5 {[%clk 0:01:22]}  Bc4 {[%clk 0:00:07]} 56. Re5+ {[%clk 0:01:22]}  Kd6 {[%clk 0:00:07]} 57. Rxe3 {[%clk 0:01:23]}  Kxc6 {[%clk 0:00:07]} 58. Re5 {[%clk 0:01:23]}  Be6 {[%clk 0:00:05]} 59. Kf2 {[%clk 0:01:23]}  Kd6 {[%clk 0:00:05]} 60. Ke3 {[%clk 0:01:23]}  Bd5 {[%clk 0:00:04]} 61. Kf4 {[%clk 0:01:21]}  Be6 {[%clk 0:00:04]} 62. Kg5 {[%clk 0:01:20]}  Ke7 {[%clk 0:00:04]} 63. Re3 {[%clk 0:01:19]}  Kd6 {[%clk 0:00:04]} 64. g4 {[%clk 0:01:18]}  hxg4 {[%clk 0:00:04]} 65. fxg4 {[%clk 0:01:18]}  Kd5 {[%clk 0:00:03]} 66. h5 {[%clk 0:01:17]}  gxh5 {[%clk 0:00:03]} 67. gxh5 {[%clk 0:01:18]} 1-0


[Site "https://www.chess.com"]

[Event "Titled Tuesday Blitz September 27 Early 2022"]
[White "Ansh M Shah"]
[Black "Marin Ramirez, Gerardo"]
[WhiteFideId "25033379"]
[BlackFideId "3901068"]
[WhiteElo "1819"]
[BlackElo "1920"]
[Result "1-0"]
[Round "06"]
[TimeControl "180+1"]
[Date "2022.09.27"]
[WhiteClock "0:00:32"]
[BlackClock "0:00:14"]

1. d4 {[%clk 0:03:00]}  d5 {[%clk 0:02:50]} 2. c4 {[%clk 0:03:01]}  c6 {[%clk 0:02:44]} 3. cxd5 {[%clk 0:02:59]}  Nf6 {[%clk 0:02:39]} 4. Nc3 {[%clk 0:03:00]}  cxd5 {[%clk 0:02:36]} 5. Bf4 {[%clk 0:03:00]}  e6 {[%clk 0:02:33]} 6. e3 {[%clk 0:02:58]}  a6 {[%clk 0:02:32]} 7. Nf3 {[%clk 0:02:57]}  Bd6 {[%clk 0:02:31]} 8. Bxd6 {[%clk 0:02:57]}  Qxd6 {[%clk 0:02:29]} 9. Ne5 {[%clk 0:02:58]}  O-O {[%clk 0:02:28]} 10. Bd3 {[%clk 0:02:56]}  b5 {[%clk 0:02:20]} 11. f4 {[%clk 0:02:54]}  Bb7 {[%clk 0:02:12]} 12. O-O {[%clk 0:02:53]}  b4 {[%clk 0:02:09]} 13. Na4 {[%clk 0:02:47]}  a5 {[%clk 0:01:58]} 14. Nc5 {[%clk 0:02:43]}  Ba6 {[%clk 0:01:46]} 15. Nxa6 {[%clk 0:02:27]}  Nxa6 {[%clk 0:01:43]} 16. Rc1 {[%clk 0:02:27]}  Rfc8 {[%clk 0:01:20]} 17. Qa4 {[%clk 0:02:24]}  Qb6 {[%clk 0:01:12]} 18. Qb5 {[%clk 0:02:01]}  Qxb5 {[%clk 0:01:10]} 19. Bxb5 {[%clk 0:02:02]}  Rxc1 {[%clk 0:01:05]} 20. Rxc1 {[%clk 0:02:00]}  g5 {[%clk 0:00:38]} 21. fxg5 {[%clk 0:01:50]}  Ne4 {[%clk 0:00:36]} 22. Rc6 {[%clk 0:01:44]}  b3 {[%clk 0:00:35]} 23. a3 {[%clk 0:01:34]}  Nb4 {[%clk 0:00:35]} 24. axb4 {[%clk 0:01:32]}  axb4 {[%clk 0:00:36]} 25. h4 {[%clk 0:01:24]}  Ra2 {[%clk 0:00:31]} 26. Bd3 {[%clk 0:00:41]}  Rxb2 {[%clk 0:00:27]} 27. Bxe4 {[%clk 0:00:41]}  dxe4 {[%clk 0:00:26]} 28. Rb6 {[%clk 0:00:40]}  Rc2 {[%clk 0:00:25]} 29. Rxb4 {[%clk 0:00:40]}  b2 {[%clk 0:00:25]} 30. Kh2 {[%clk 0:00:39]}  Kf8 {[%clk 0:00:17]} 31. Nd7+ {[%clk 0:00:38]}  Ke7 {[%clk 0:00:16]} 32. Nf6 {[%clk 0:00:39]}  Kd6 {[%clk 0:00:13]} 33. Nxe4+ {[%clk 0:00:38]}  Kd5 {[%clk 0:00:12]} 34. Nf6+ {[%clk 0:00:34]}  Kd6 {[%clk 0:00:13]} 35. e4 {[%clk 0:00:31]}  Rd2 {[%clk 0:00:13]} 36. Nxh7 {[%clk 0:00:27]}  Kc6 {[%clk 0:00:11]} 37. Nf6 {[%clk 0:00:25]}  Rxd4 {[%clk 0:00:07]} 38. Rxb2 {[%clk 0:00:25]}  Rd2 {[%clk 0:00:06]} 39. Rxd2 {[%clk 0:00:24]}  Kc5 {[%clk 0:00:07]} 40. Rd7 {[%clk 0:00:24]}  Kc4 {[%clk 0:00:07]} 41. Rxf7 {[%clk 0:00:25]}  Kc3 {[%clk 0:00:08]} 42. Re7 {[%clk 0:00:26]}  Kc2 {[%clk 0:00:09]} 43. Rxe6 {[%clk 0:00:27]}  Kd1 {[%clk 0:00:09]} 44. Rd6+ {[%clk 0:00:28]}  Ke2 {[%clk 0:00:10]} 45. Re6 {[%clk 0:00:28]}  Ke3 {[%clk 0:00:11]} 46. e5 {[%clk 0:00:29]}  Kf4 {[%clk 0:00:11]} 47. Rd6 {[%clk 0:00:29]}  Kf5 {[%clk 0:00:12]} 48. Rd4 {[%clk 0:00:29]}  Ke6 {[%clk 0:00:12]} 49. Rf4 {[%clk 0:00:30]}  Kxe5 {[%clk 0:00:12]} 50. Nh5 {[%clk 0:00:30]}  Ke6 {[%clk 0:00:13]} 51. g3 {[%clk 0:00:30]}  Ke5 {[%clk 0:00:14]} 52. Nf6 {[%clk 0:00:30]}  Kd6 {[%clk 0:00:15]} 53. Ng4 {[%clk 0:00:30]}  Ke6 {[%clk 0:00:13]} 54. Nf2 {[%clk 0:00:31]}  Kd5 {[%clk 0:00:14]} 55. g6 {[%clk 0:00:32]} 1-0


[Site "https://www.chess.com"]

[Event "Titled Tuesday Blitz September 27 Early 2022"]
[White "Antonio, Jorge Carlos"]
[Black "Guliev, Logman"]
[WhiteFideId "113190"]
[BlackFideId "13400061"]
[WhiteElo "2247"]
[BlackElo "2128"]
[Result "0-1"]
[Round "06"]
[TimeControl "180+1"]
[Date "2022.09.27"]
[WhiteClock "0:00:03"]
[BlackClock "0:00:22"]

1. d4 {[%clk 0:03:00]}  Nf6 {[%clk 0:02:58]} 2. Nf3 {[%clk 0:02:59]}  g6 {[%clk 0:02:57]} 3. c4 {[%clk 0:02:58]}  Bg7 {[%clk 0:02:56]} 4. Nc3 {[%clk 0:02:55]}  d6 {[%clk 0:02:55]} 5. e4 {[%clk 0:02:55]}  O-O {[%clk 0:02:50]} 6. Be2 {[%clk 0:02:55]}  Nbd7 {[%clk 0:02:32]} 7. O-O {[%clk 0:02:53]}  e5 {[%clk 0:02:28]} 8. d5 {[%clk 0:02:53]}  a5 {[%clk 0:02:21]} 9. h3 {[%clk 0:02:51]}  Nc5 {[%clk 0:02:20]} 10. Qc2 {[%clk 0:02:48]}  b6 {[%clk 0:02:12]} 11. Be3 {[%clk 0:02:44]}  Bd7 {[%clk 0:02:13]} 12. b3 {[%clk 0:02:43]}  h5 {[%clk 0:02:08]} 13. a3 {[%clk 0:02:42]}  Nh7 {[%clk 0:02:03]} 14. b4 {[%clk 0:02:42]}  Nb7 {[%clk 0:01:57]} 15. Rac1 {[%clk 0:02:40]}  f5 {[%clk 0:01:53]} 16. Bd2 {[%clk 0:02:24]}  Qe7 {[%clk 0:01:52]} 17. Nb5 {[%clk 0:02:20]}  Be8 {[%clk 0:01:45]} 18. Bd3 {[%clk 0:01:59]}  f4 {[%clk 0:01:42]} 19. Qb3 {[%clk 0:01:55]}  g5 {[%clk 0:01:42]} 20. Kh2 {[%clk 0:01:48]}  g4 {[%clk 0:01:42]} 21. hxg4 {[%clk 0:01:47]}  hxg4 {[%clk 0:01:42]} 22. Ne1 {[%clk 0:01:44]}  Qh4+ {[%clk 0:01:37]} 23. Kg1 {[%clk 0:01:44]}  Ng5 {[%clk 0:01:38]} 24. Be2 {[%clk 0:01:12]}  g3 {[%clk 0:01:35]} 25. fxg3 {[%clk 0:01:10]}  fxg3 {[%clk 0:01:30]} 26. Rxf8+ {[%clk 0:01:05]}  Bxf8 {[%clk 0:01:30]} 27. Be3 {[%clk 0:00:37]}  Nxe4 {[%clk 0:01:17]} 28. Nf3 {[%clk 0:00:33]}  Qh7 {[%clk 0:01:13]} 29. Bd3 {[%clk 0:00:29]}  Bg6 {[%clk 0:01:10]} 30. Qc2 {[%clk 0:00:25]}  axb4 {[%clk 0:01:04]} 31. axb4 {[%clk 0:00:24]}  Bh6 {[%clk 0:01:00]} 32. Bxh6 {[%clk 0:00:19]}  Qxh6 {[%clk 0:01:01]} 33. Bxe4 {[%clk 0:00:19]}  Qe3+ {[%clk 0:00:50]} 34. Kh1 {[%clk 0:00:18]}  Kg7 {[%clk 0:00:43]} 35. Bxg6 {[%clk 0:00:10]}  Rh8+ {[%clk 0:00:41]} 36. Bh7 {[%clk 0:00:10]}  Rxh7+ {[%clk 0:00:40]} 37. Qxh7+ {[%clk 0:00:07]}  Kxh7 {[%clk 0:00:41]} 38. Re1 {[%clk 0:00:07]}  Qf4 {[%clk 0:00:32]} 39. Nxc7 {[%clk 0:00:08]}  Qxc4 {[%clk 0:00:31]} 40. Ne6 {[%clk 0:00:09]}  Qxb4 {[%clk 0:00:28]} 41. Nfg5+ {[%clk 0:00:09]}  Kg6 {[%clk 0:00:24]} 42. Ne4 {[%clk 0:00:07]}  Nc5 {[%clk 0:00:22]} 43. N6g5 {[%clk 0:00:03]}  Qxe1# {[%clk 0:00:22]} 0-1


[Site "https://www.chess.com"]

[Event "Titled Tuesday Blitz September 27 Early 2022"]
[White "Ardila, Oscar Humberto"]
[Black "Guerrero Olmos, Sergio"]
[WhiteFideId "4404742"]
[BlackFideId "2257238"]
[WhiteElo "1898"]
[BlackElo "2259"]
[Result "0-1"]
[Round "06"]
[TimeControl "180+1"]
[Date "2022.09.27"]
[WhiteClock "0:00:14"]
[BlackClock "0:00:27"]

1. d4 {[%clk 0:03:00]}  d5 {[%clk 0:02:27]} 2. c4 {[%clk 0:02:57]}  Nc6 {[%clk 0:02:26]} 3. Nf3 {[%clk 0:02:49]}  Bg4 {[%clk 0:02:25]} 4. Nbd2 {[%clk 0:02:45]}  Nf6 {[%clk 0:02:22]} 5. h3 {[%clk 0:02:45]}  Bh5 {[%clk 0:02:21]} 6. g4 {[%clk 0:02:44]}  Bg6 {[%clk 0:02:21]} 7. Bg2 {[%clk 0:02:43]}  e6 {[%clk 0:02:14]} 8. O-O {[%clk 0:02:42]}  Be7 {[%clk 0:02:13]} 9. c5 {[%clk 0:02:40]}  O-O {[%clk 0:02:12]} 10. e3 {[%clk 0:02:38]}  b6 {[%clk 0:02:07]} 11. Qa4 {[%clk 0:02:34]}  Qd7 {[%clk 0:02:02]} 12. Qa3 {[%clk 0:02:16]}  bxc5 {[%clk 0:01:57]} 13. dxc5 {[%clk 0:02:16]}  a5 {[%clk 0:01:54]} 14. Nb3 {[%clk 0:02:12]}  Rfb8 {[%clk 0:01:48]} 15. Nbd4 {[%clk 0:02:03]}  Ne4 {[%clk 0:01:32]} 16. Bd2 {[%clk 0:01:45]}  Bxc5 {[%clk 0:01:28]} 17. Qa4 {[%clk 0:01:28]}  Nxd2 {[%clk 0:01:26]} 18. Qxc6 {[%clk 0:01:21]}  Nxf3+ {[%clk 0:01:24]} 19. Bxf3 {[%clk 0:01:18]}  Qxc6 {[%clk 0:01:19]} 20. Nxc6 {[%clk 0:01:18]}  Rb6 {[%clk 0:01:16]} 21. Ne5 {[%clk 0:01:17]}  Rxb2 {[%clk 0:01:11]} 22. Rac1 {[%clk 0:01:09]}  Bd6 {[%clk 0:01:09]} 23. Nxg6 {[%clk 0:01:09]}  hxg6 {[%clk 0:01:08]} 24. a4 {[%clk 0:01:02]}  Rab8 {[%clk 0:01:04]} 25. Rc6 {[%clk 0:00:59]}  R8b6 {[%clk 0:01:02]} 26. Rxb6 {[%clk 0:00:56]}  Rxb6 {[%clk 0:01:01]} 27. Rc1 {[%clk 0:00:53]}  c5 {[%clk 0:00:59]} 28. Kf1 {[%clk 0:00:51]}  f5 {[%clk 0:00:58]} 29. Be2 {[%clk 0:00:49]}  c4 {[%clk 0:00:58]} 30. Ke1 {[%clk 0:00:47]}  Rb4 {[%clk 0:00:55]} 31. Ra1 {[%clk 0:00:46]}  Be5 {[%clk 0:00:55]} 32. Ra2 {[%clk 0:00:40]}  Bc3+ {[%clk 0:00:55]} 33. Kd1 {[%clk 0:00:40]}  Kf7 {[%clk 0:00:51]} 34. Kc2 {[%clk 0:00:39]}  Be1 {[%clk 0:00:46]} 35. f3 {[%clk 0:00:34]}  Kf6 {[%clk 0:00:43]} 36. Kd1 {[%clk 0:00:24]}  Bf2 {[%clk 0:00:36]} 37. e4 {[%clk 0:00:24]}  d4 {[%clk 0:00:30]} 38. Kd2 {[%clk 0:00:17]}  Be3+ {[%clk 0:00:29]} 39. Kd1 {[%clk 0:00:14]}  d3 {[%clk 0:00:28]} 40. Bf1 {[%clk 0:00:14]}  Rb1# {[%clk 0:00:27]} 0-1


[Site "https://www.chess.com"]

[Event "Titled Tuesday Blitz September 27 Early 2022"]
[White "Bacrot, Etienne"]
[Black "Kodinets, Konstantin L."]
[WhiteFideId "605506"]
[BlackFideId "4122011"]
[WhiteElo "2666"]
[BlackElo "2447"]
[Result "1-0"]
[Round "06"]
[TimeControl "180+1"]
[Date "2022.09.27"]
[WhiteClock "0:00:05"]
[BlackClock "0:00:02"]

1. e4 {[%clk 0:03:00]}  e5 {[%clk 0:02:59]} 2. Nf3 {[%clk 0:03:00]}  d6 {[%clk 0:02:59]} 3. d4 {[%clk 0:02:59]}  exd4 {[%clk 0:03:00]} 4. Nxd4 {[%clk 0:02:59]}  Nf6 {[%clk 0:03:01]} 5. Nc3 {[%clk 0:03:00]}  Be7 {[%clk 0:03:02]} 6. Rg1 {[%clk 0:03:00]}  O-O {[%clk 0:03:02]} 7. g4 {[%clk 0:03:00]}  d5 {[%clk 0:02:59]} 8. e5 {[%clk 0:02:51]}  Ne4 {[%clk 0:02:57]} 9. Nxe4 {[%clk 0:02:47]}  dxe4 {[%clk 0:02:58]} 10. Bf4 {[%clk 0:02:43]}  Bg5 {[%clk 0:02:44]} 11. Bg3 {[%clk 0:02:28]}  c5 {[%clk 0:01:40]} 12. Nf5 {[%clk 0:02:26]}  Qa5+ {[%clk 0:01:40]} 13. c3 {[%clk 0:02:23]}  Rd8 {[%clk 0:01:40]} 14. Nd6 {[%clk 0:02:14]}  Nc6 {[%clk 0:01:33]} 15. Bc4 {[%clk 0:02:08]}  Be6 {[%clk 0:01:18]} 16. Bxe6 {[%clk 0:01:54]}  fxe6 {[%clk 0:01:19]} 17. Qe2 {[%clk 0:01:42]}  e3 {[%clk 0:01:09]} 18. fxe3 {[%clk 0:01:30]}  Rd7 {[%clk 0:00:47]} 19. Qc4 {[%clk 0:01:12]}  Nd8 {[%clk 0:00:45]} 20. Ke2 {[%clk 0:01:00]}  Be7 {[%clk 0:00:20]} 21. Rgf1 {[%clk 0:00:57]}  Bxd6 {[%clk 0:00:12]} 22. exd6 {[%clk 0:00:57]}  Rc8 {[%clk 0:00:12]} 23. Rad1 {[%clk 0:00:54]}  b5 {[%clk 0:00:06]} 24. Qe4 {[%clk 0:00:38]}  Qxa2 {[%clk 0:00:05]} 25. Rd2 {[%clk 0:00:35]}  Qc4+ {[%clk 0:00:03]} 26. Qxc4 {[%clk 0:00:35]}  bxc4 {[%clk 0:00:03]} 27. Rf4 {[%clk 0:00:34]}  Rb8 {[%clk 0:00:03]} 28. Rxc4 {[%clk 0:00:34]}  Rb5 {[%clk 0:00:02]} 29. e4 {[%clk 0:00:33]}  Kf7 {[%clk 0:00:01]} 30. e5 {[%clk 0:00:33]}  Nc6 {[%clk 0:00:01]} 31. Ke3 {[%clk 0:00:30]}  a5 {[%clk 0:00:02]} 32. Rf2+ {[%clk 0:00:30]}  Kg6 {[%clk 0:00:02]} 33. h4 {[%clk 0:00:29]}  h5 {[%clk 0:00:02]} 34. gxh5+ {[%clk 0:00:28]}  Kxh5 {[%clk 0:00:02]} 35. Kd3 {[%clk 0:00:17]}  Rdb7 {[%clk 0:00:02]} 36. Ke3 {[%clk 0:00:10]}  Kg6 {[%clk 0:00:03]} 37. Rg4+ {[%clk 0:00:09]}  Kh7 {[%clk 0:00:03]} 38. h5 {[%clk 0:00:09]}  Nb8 {[%clk 0:00:03]} 39. Bh4 {[%clk 0:00:07]}  Nd7 {[%clk 0:00:02]} 40. Rf7 {[%clk 0:00:05]}  Nxe5 {[%clk 0:00:02]} 41. Rgxg7+ {[%clk 0:00:05]}  Kh6 {[%clk 0:00:02]} 42. Rxb7 {[%clk 0:00:06]}  Rxb7 {[%clk 0:00:02]} 43. Rxb7 {[%clk 0:00:06]}  Kxh5 {[%clk 0:00:03]} 44. d7 {[%clk 0:00:05]}  Nc4+ {[%clk 0:00:01]} 45. Kf2 {[%clk 0:00:04]}  Nd6 {[%clk 0:00:01]} 46. d8=Q {[%clk 0:00:05]}  Nxb7 {[%clk 0:00:02]} 47. Qg5# {[%clk 0:00:05]} 1-0


[Site "https://www.chess.com"]

[Event "Titled Tuesday Blitz September 27 Early 2022"]
[White "Badelka, Olga"]
[Black "De Silva, L M S T"]
[WhiteFideId "13509926"]
[BlackFideId "9953698"]
[WhiteElo "2165"]
[BlackElo "1727"]
[Result "0-1"]
[Round "06"]
[TimeControl "180+1"]
[Date "2022.09.27"]
[WhiteClock "0:00:03"]
[BlackClock "0:01:36"]

1. c4 {[%clk 0:03:00]}  e5 {[%clk 0:02:58]} 2. Nc3 {[%clk 0:03:00]}  Nf6 {[%clk 0:02:58]} 3. Nf3 {[%clk 0:03:00]}  Nc6 {[%clk 0:02:58]} 4. e3 {[%clk 0:02:58]}  Bb4 {[%clk 0:02:56]} 5. Qc2 {[%clk 0:02:59]}  Bxc3 {[%clk 0:02:56]} 6. Qxc3 {[%clk 0:02:59]}  d6 {[%clk 0:02:57]} 7. b4 {[%clk 0:02:48]}  O-O {[%clk 0:02:57]} 8. b5 {[%clk 0:02:46]}  Ne7 {[%clk 0:02:57]} 9. Bb2 {[%clk 0:02:37]}  Ng6 {[%clk 0:02:56]} 10. Be2 {[%clk 0:02:35]}  c6 {[%clk 0:02:54]} 11. a4 {[%clk 0:02:35]}  Be6 {[%clk 0:02:51]} 12. h4 {[%clk 0:02:18]}  Ne4 {[%clk 0:02:41]} 13. Qc2 {[%clk 0:02:13]}  f5 {[%clk 0:02:40]} 14. h5 {[%clk 0:02:11]}  Ne7 {[%clk 0:02:39]} 15. h6 {[%clk 0:02:11]}  g6 {[%clk 0:02:37]} 16. d3 {[%clk 0:01:47]}  Nf6 {[%clk 0:02:36]} 17. Ng5 {[%clk 0:01:36]}  Qd7 {[%clk 0:02:36]} 18. f4 {[%clk 0:01:36]}  exf4 {[%clk 0:02:21]} 19. exf4 {[%clk 0:01:36]}  d5 {[%clk 0:02:20]} 20. Be5 {[%clk 0:01:15]}  d4 {[%clk 0:02:12]} 21. Bf3 {[%clk 0:01:09]}  c5 {[%clk 0:02:12]} 22. Nxe6 {[%clk 0:00:42]}  Qxe6 {[%clk 0:02:13]} 23. Bxb7 {[%clk 0:00:42]}  Rab8 {[%clk 0:02:11]} 24. Bf3 {[%clk 0:00:39]}  g5 {[%clk 0:02:05]} 25. O-O-O {[%clk 0:00:38]}  g4 {[%clk 0:02:04]} 26. Bd5 {[%clk 0:00:23]}  Nexd5 {[%clk 0:02:03]} 27. cxd5 {[%clk 0:00:24]}  Nxd5 {[%clk 0:02:03]} 28. Qc4 {[%clk 0:00:23]}  Rbd8 {[%clk 0:02:00]} 29. Rhe1 {[%clk 0:00:22]}  Qf7 {[%clk 0:01:59]} 30. Bg7 {[%clk 0:00:22]}  Rfe8 {[%clk 0:01:58]} 31. Rxe8+ {[%clk 0:00:18]}  Qxe8 {[%clk 0:01:58]} 32. Be5 {[%clk 0:00:15]}  Qe6 {[%clk 0:01:55]} 33. Kb2 {[%clk 0:00:13]}  Rc8 {[%clk 0:01:54]} 34. Re1 {[%clk 0:00:12]}  Kf7 {[%clk 0:01:55]} 35. a5 {[%clk 0:00:09]}  Ne3 {[%clk 0:01:54]} 36. Qxe6+ {[%clk 0:00:07]}  Kxe6 {[%clk 0:01:55]} 37. b6 {[%clk 0:00:04]}  axb6 {[%clk 0:01:45]} 38. axb6 {[%clk 0:00:04]}  Rc6 {[%clk 0:01:46]} 39. b7 {[%clk 0:00:03]}  Rb6+ {[%clk 0:01:45]} 40. Ka3 {[%clk 0:00:04]}  Rxb7 {[%clk 0:01:46]} 41. Rc1 {[%clk 0:00:04]}  Kd5 {[%clk 0:01:45]} 42. g3 {[%clk 0:00:03]}  c4 {[%clk 0:01:45]} 43. dxc4+ {[%clk 0:00:03]}  Nxc4+ {[%clk 0:01:45]} 44. Ka4 {[%clk 0:00:03]}  d3 {[%clk 0:01:44]} 45. Bc3 {[%clk 0:00:03]}  Ke4 {[%clk 0:01:37]} 46. Re1+ {[%clk 0:00:03]}  Kf3 {[%clk 0:01:37]} 47. Re6 {[%clk 0:00:02]}  d2 {[%clk 0:01:35]} 48. Bxd2 {[%clk 0:00:02]}  Nxd2 {[%clk 0:01:36]} 49. Rf6 {[%clk 0:00:02]}  Kxg3 {[%clk 0:01:36]} 50. Rxf5 {[%clk 0:00:02]}  Kf3 {[%clk 0:01:36]} 51. Rg5 {[%clk 0:00:02]}  g3 {[%clk 0:01:36]} 52. Rg7 {[%clk 0:00:02]}  Rb8 {[%clk 0:01:36]} 53. Rxh7 {[%clk 0:00:03]}  g2 {[%clk 0:01:36]} 54. Rg7 {[%clk 0:00:03]}  Ne4 {[%clk 0:01:35]} 55. h7 {[%clk 0:00:02]}  Rh8 {[%clk 0:01:35]} 56. f5 {[%clk 0:00:02]}  Ng3 {[%clk 0:01:36]} 57. f6 {[%clk 0:00:03]}  g1=Q {[%clk 0:01:36]} 0-1


[Site "https://www.chess.com"]

[Event "Titled Tuesday Blitz September 27 Early 2022"]
[White "Balabayeva, Xeniya"]
[Black "Zaichenko, Daria"]
[WhiteFideId "13719688"]
[BlackFideId "4197453"]
[WhiteElo "1895"]
[BlackElo "2039"]
[Result "1-0"]
[Round "06"]
[TimeControl "180+1"]
[Date "2022.09.27"]
[WhiteClock "0:00:04"]
[BlackClock "0:00:01"]

1. e4 {[%clk 0:03:00]}  c5 {[%clk 0:02:59]} 2. Nf3 {[%clk 0:02:57]}  Nc6 {[%clk 0:03:00]} 3. Bb5 {[%clk 0:02:56]}  Nf6 {[%clk 0:02:56]} 4. Qe2 {[%clk 0:02:51]}  d6 {[%clk 0:02:56]} 5. O-O {[%clk 0:02:49]}  Bd7 {[%clk 0:02:56]} 6. c3 {[%clk 0:02:48]}  e5 {[%clk 0:02:57]} 7. Rd1 {[%clk 0:02:46]}  Be7 {[%clk 0:02:56]} 8. d4 {[%clk 0:02:44]}  O-O {[%clk 0:02:53]} 9. dxe5 {[%clk 0:02:43]}  Nxe5 {[%clk 0:02:44]} 10. Nxe5 {[%clk 0:02:40]}  dxe5 {[%clk 0:02:40]} 11. Bxd7 {[%clk 0:02:29]}  Nxd7 {[%clk 0:02:28]} 12. Na3 {[%clk 0:02:28]}  a6 {[%clk 0:02:20]} 13. Nc4 {[%clk 0:02:25]}  Qc7 {[%clk 0:02:19]} 14. Ne3 {[%clk 0:02:24]}  Nb6 {[%clk 0:02:14]} 15. Nf5 {[%clk 0:02:07]}  Rad8 {[%clk 0:02:12]} 16. Be3 {[%clk 0:02:04]}  g6 {[%clk 0:02:10]} 17. Ng3 {[%clk 0:01:44]}  Kg7 {[%clk 0:02:07]} 18. Qg4 {[%clk 0:01:40]}  Kh8 {[%clk 0:02:02]} 19. h4 {[%clk 0:01:32]}  Qc8 {[%clk 0:01:55]} 20. Qf3 {[%clk 0:01:25]}  Qe6 {[%clk 0:01:53]} 21. Bg5 {[%clk 0:01:09]}  f5 {[%clk 0:01:42]} 22. Bxe7 {[%clk 0:00:59]}  Qxe7 {[%clk 0:01:39]} 23. exf5 {[%clk 0:00:58]}  Rxd1+ {[%clk 0:01:35]} 24. Rxd1 {[%clk 0:00:56]}  Qxh4 {[%clk 0:01:35]} 25. Qe2 {[%clk 0:00:55]}  Qf6 {[%clk 0:01:27]} 26. fxg6 {[%clk 0:00:51]}  hxg6 {[%clk 0:01:27]} 27. Ne4 {[%clk 0:00:46]}  Qf5 {[%clk 0:01:25]} 28. Nxc5 {[%clk 0:00:38]}  Kg7 {[%clk 0:01:22]} 29. Nxb7 {[%clk 0:00:29]}  Nc4 {[%clk 0:01:14]} 30. b3 {[%clk 0:00:28]}  Nb6 {[%clk 0:01:08]} 31. Nd6 {[%clk 0:00:27]}  Qf4 {[%clk 0:01:06]} 32. Ne4 {[%clk 0:00:25]}  Rh8 {[%clk 0:01:02]} 33. g3 {[%clk 0:00:20]}  Qf5 {[%clk 0:01:03]} 34. Kf1 {[%clk 0:00:17]}  Rh1+ {[%clk 0:00:44]} 35. Kg2 {[%clk 0:00:16]}  Qh3+ {[%clk 0:00:44]} 36. Kf3 {[%clk 0:00:16]}  Qh5+ {[%clk 0:00:11]} 37. g4 {[%clk 0:00:16]}  Qh3+ {[%clk 0:00:11]} 38. Ng3 {[%clk 0:00:16]}  Rh2 {[%clk 0:00:10]} 39. Qxe5+ {[%clk 0:00:14]}  Kh7 {[%clk 0:00:09]} 40. Qc7+ {[%clk 0:00:10]}  Kh6 {[%clk 0:00:10]} 41. Qf4+ {[%clk 0:00:10]}  Kg7 {[%clk 0:00:09]} 42. Rd6 {[%clk 0:00:08]}  Qg2+ {[%clk 0:00:08]} 43. Ke3 {[%clk 0:00:08]}  Nd5+ {[%clk 0:00:05]} 44. Rxd5 {[%clk 0:00:05]}  Qxd5 {[%clk 0:00:06]} 45. Nf5+ {[%clk 0:00:05]}  gxf5 {[%clk 0:00:05]} 46. Qxh2 {[%clk 0:00:05]}  Qe4+ {[%clk 0:00:05]} 47. Kd2 {[%clk 0:00:05]}  fxg4 {[%clk 0:00:05]} 48. Qc7+ {[%clk 0:00:04]}  Kg6 {[%clk 0:00:05]} 49. Qd6+ {[%clk 0:00:04]}  Kg5 {[%clk 0:00:04]} 50. Qd3 {[%clk 0:00:04]}  Qe5 {[%clk 0:00:01]} 51. Qe3+ {[%clk 0:00:04]} 1-0


[Site "https://www.chess.com"]